bitfinex-derivatives/quotes_BTCF0:USTF0_20250506
["timestamp","ask_amount","ask_price","bid_price","bid_amount"]
[1746559755590,0.210132,95183.0,95182.0,0.15671157]
[1746559755795,0.2101342,95182.0,95181.0,0.36872474]
[1746559756008,0.2101695,95166.0,95165.0,0.44064]
[1746559756301,0.2101695,95166.0,95165.0,0.6508118]
[1746559756502,0.2101695,95166.0,95165.0,0.73981034]
[1746559756703,0.2727695,95166.0,95165.0,0.73981034]
[1746559759007,0.2727695,95166.0,95165.0,0.51913218]
[1746559759897,0.2727695,95166.0,95165.0,0.52695842]
[1746559760603,0.2727695,95166.0,95165.0,0.73713022]
[1746559760804,0.2727695,95166.0,95165.0,0.74750182]
[1746559763005,0.2727695,95166.0,95165.0,0.38670182]
[1746559765501,0.2727695,95166.0,95165.0,0.16615842]
[1746559766005,0.2727695,95166.0,95165.0,0.37633022]
[1746559766711,0.2727695,95166.0,95165.0,0.38710418]
[1746559767207,0.2727695,95166.0,95165.0,0.16615842]
[1746559767408,0.3608,95170.0,95165.0,0.17647831]
[1746559767708,0.71797752,95200.0,95167.0,0.2101633]
[1746559767709,0.3152509,95168.0,95167.0,0.2101633]
[1746559768207,0.3152509,95168.0,95167.0,0.36854558]
[1746559768407,0.3784509,95168.0,95167.0,0.36854558]
[1746559769907,0.3784509,95168.0,95167.0,0.15838228]
[1746559771110,0.3784509,95168.0,95167.0,0.18998228]
[1746559771308,0.3784509,95168.0,95167.0,0.40014958]
[1746559771805,0.3784509,95168.0,95167.0,0.18998228]
[1746559772401,0.3784509,95168.0,95167.0,0.40014958]
[1746559778313,0.3784509,95168.0,95167.0,0.18998228]
[1746559780115,0.3784509,95168.0,95167.0,0.40014958]
[1746559781318,0.3784509,95168.0,95167.0,0.18998228]
[1746559784014,0.0525396,95171.0,95169.0,0.2101607]
[1746559784209,0.16078724,95176.0,95167.0,0.24252388]
[1746559784210,0.0525374,95175.0,95173.0,0.2101497]
[1746559784517,0.2626871,95175.0,95174.0,0.2721519]
[1746559784707,0.2956871,95175.0,95174.0,0.2721519]
[1746559785518,0.3270871,95175.0,95174.0,0.2721519]
[1746559792218,0.3270871,95175.0,95174.0,0.43068468]
[1746559793713,0.3573871,95175.0,95174.0,0.39928468]
[1746559795321,0.3573871,95175.0,95174.0,0.18913278]
[1746559795911,0.4370271,95175.0,95174.0,0.18913278]
[1746559797523,0.59781434,95175.0,95174.0,0.18913278]
[1746559800028,0.4370271,95175.0,95174.0,0.18913278]
[1746559800325,0.4370271,95175.0,95174.0,0.39928468]
[1746559800629,0.2101497,95175.0,95174.0,0.39928468]
[1746559801423,0.2101497,95175.0,95174.0,0.42938468]
[1746559801620,0.2406497,95175.0,95174.0,0.42938468]
[1746559801815,0.2406497,95175.0,95174.0,0.21923278]
[1746559802018,0.2406497,95175.0,95174.0,0.42938468]
[1746559804131,0.2406497,95175.0,95174.0,0.21923278]
[1746559804325,0.2406497,95175.0,95174.0,0.42938468]
[1746559804734,0.2406497,95175.0,95174.0,0.18913278]
[1746559805025,0.2406497,95175.0,95174.0,0.15853278]
[1746559805621,0.2101607,95170.0,95169.0,0.031]
[1746559805820,0.5709607,95170.0,95169.0,0.18805435]
[1746559806230,0.2101695,95166.0,95165.0,0.36084752]
[1746559806529,0.2101695,95166.0,95165.0,0.12012624]
[1746559806827,0.2101695,95166.0,95165.0,0.2446664]
[1746559807434,0.2752695,95166.0,95165.0,0.2446664]
[1746559808124,0.2752695,95166.0,95165.0,0.2773664]
[1746559808928,0.27544041,95166.0,95165.0,0.2773664]
[1746559813230,0.43612768,95166.0,95165.0,0.2773664]
[1746559813427,0.16085818,95166.0,95165.0,0.6275382]
[1746559813729,0.16085818,95166.0,95165.0,0.9485382]
[1746559815626,0.00017091,95166.0,95165.0,0.9485382]
[1746559818834,0.00017091,95166.0,95165.0,0.9803382]
[1746559821433,0.21034041,95166.0,95165.0,0.9803382]
[1746559823033,0.00017091,95166.0,95165.0,0.9803382]
[1746559824429,0.21034041,95166.0,95165.0,0.9803382]
[1746559830335,0.00017091,95166.0,95165.0,0.9803382]
[1746559837441,0.00017091,95166.0,95165.0,2.4803382]
[1746559843042,0.0615,95168.0,95167.0,0.2101673]
[1746559843244,0.0615,95168.0,95167.0,0.6701673]
[1746559843543,0.0615,95168.0,95167.0,0.82841562]
[1746559844539,0.0615,95168.0,95167.0,2.32841562]
[1746559849410,0.2716651,95168.0,95167.0,2.18841562]
[1746559849548,0.2716651,95168.0,95167.0,1.86841562]
[1746559850055,0.2716651,95168.0,95167.0,0.15824832]
[1746559850347,0.2101673,95167.0,95166.0,0.07944]
[1746559850552,0.2101673,95167.0,95166.0,0.23656938]
[1746559850841,0.2735673,95167.0,95166.0,0.23656938]
[1746559851651,0.2735673,95167.0,95166.0,0.15712938]
[1746559852149,0.2101695,95166.0,95165.0,0.00782624]
[1746559852346,0.2101983,95153.0,95151.0,0.27640811]
[1746559852547,0.2102005,95152.0,95151.0,0.27640811]
[1746559852845,0.2403005,95152.0,95151.0,0.4331333]
[1746559854740,0.2403005,95152.0,95151.0,0.44098975]
[1746559858450,0.2403005,95152.0,95151.0,0.65119245]
[1746559861357,0.2403005,95152.0,95151.0,0.44098975]
[1746559862153,0.2403005,95152.0,95151.0,0.36154975]
[1746559864348,0.2403005,95152.0,95151.0,0.16458164]
[1746559864944,0.3453965,95152.0,95151.0,0.00785645]
[1746559865155,0.2102137,95146.0,95145.0,0.00157632]
[1746559865558,0.3153177,95146.0,95145.0,0.00157632]
[1746559866256,0.2102358,95136.0,95135.0,0.00105113]
[1746559866457,0.6503558,95136.0,95135.0,0.00902586]
[1746559866660,0.6503558,95136.0,95135.0,0.16658425]
[1746559867155,0.7143558,95136.0,95135.0,0.16658425]
[1746559867457,0.3535558,95136.0,95135.0,0.16658425]
[1746559867951,0.7143558,95136.0,95135.0,0.16658425]
[1746559868358,0.7143558,95136.0,95135.0,0.00902586]
[1746559869259,0.81946781,95136.0,95135.0,0.00902586]
[1746559869452,0.81946781,95136.0,95135.0,0.00105113]
[1746559869648,0.81946781,95136.0,95135.0,1e-08]
[1746559872957,0.2742358,95136.0,95135.0,1e-08]
[1746559873153,0.3535558,95136.0,95135.0,1e-08]
[1746559875653,0.2742358,95136.0,95135.0,1e-08]
[1746559875962,0.2627941,95138.0,95137.0,0.2102219]
[1746559876450,0.2944941,95138.0,95137.0,0.2102219]
[1746559876650,0.2944941,95138.0,95137.0,0.2430219]
[1746559877859,0.2102358,95138.0,95137.0,0.2430219]
[1746559878062,0.0301,95154.0,95138.0,0.0525577]
[1746559878253,0.0301,95154.0,95145.0,0.2102145]
[1746559878254,0.2102159,95146.0,95145.0,0.2102145]
[1746559878453,0.2102159,95146.0,95145.0,0.2430145]
[1746559878655,0.2102159,95146.0,95145.0,0.39974601]
[1746559880764,0.2102085,95149.0,95148.0,0.2102071]
[1746559880961,0.2894885,95149.0,95148.0,0.2102071]
[1746559881162,0.2894885,95149.0,95148.0,0.36777492]
[1746559881460,0.3217885,95149.0,95148.0,0.36777492]
[1746559882059,0.3217885,95149.0,95148.0,0.15756782]
[1746559882455,0.2102093,95148.0,95147.0,0.36687798]
[1746559883063,0.11158,95149.0,95148.0,0.2102093]
[1746559883259,0.3217871,95149.0,95148.0,0.2102093]
[1746559884562,0.2102071,95149.0,95148.0,0.36804107]
[1746559884865,0.2102071,95149.0,95148.0,0.15783177]
[1746559885164,0.2417071,95149.0,95148.0,0.15783177]
[1746559885362,0.2942593,95149.0,95148.0,0.2102093]
[1746559885563,0.2942593,95149.0,95148.0,0.36780966]
[1746559885961,0.2942593,95149.0,95148.0,0.15760036]
[1746559886163,0.3252593,95149.0,95148.0,0.15760036]
[1746559886463,0.2102181,95144.0,95143.0,0.36742681]
[1746559886858,0.2102181,95144.0,95143.0,0.21022]
[1746559887058,0.2102181,95144.0,95143.0,0.36742681]
[1746559887369,0.2733181,95144.0,95143.0,0.36742681]
[1746559888063,0.2733181,95144.0,95143.0,0.15720681]
[1746559888359,0.2733181,95144.0,95143.0,0.2102204]
[1746559888762,0.2733181,95144.0,95143.0,0.36857205]
[1746559891962,0.2733181,95144.0,95143.0,0.15835165]
[1746559892363,0.2102226,95142.0,95141.0,0.2102235]
[1746559892568,0.2102248,95141.0,95140.0,0.0307]
[1746559892773,0.2427248,95141.0,95140.0,0.240927]
[1746559893068,0.2427248,95141.0,95140.0,0.39884026]
[1746559895561,0.2427248,95141.0,95140.0,0.18861326]
[1746559896168,0.2427248,95141.0,95140.0,0.15791326]
[1746559897371,0.2427248,95141.0,95140.0,0.18951326]
[1746559898273,0.2427248,95141.0,95140.0,0.15791326]
[1746559898477,0.2102358,95136.0,95135.0,1e-08]
[1746559898660,0.6502758,95136.0,95135.0,1e-08]
[1746559898864,0.75538781,95136.0,95135.0,1e-08]
[1746559899262,0.82058781,95136.0,95135.0,1e-08]
[1746559900870,0.82058781,95136.0,95108.0,0.1140743]
[1746559900871,0.2102977,95108.0,95107.0,0.00157711]
[1746559901073,0.6503377,95108.0,95107.0,0.00157711]
[1746559901271,0.7554817,95108.0,95107.0,0.00157711]
[1746559901475,0.2103021,95106.0,95103.0,0.2103073]
[1746559901784,0.2103021,95106.0,95101.0,0.15977148]
[1746559902081,0.2103021,95106.0,95101.0,0.37008288]
[1746559902480,0.2103021,95106.0,95103.0,0.2103084]
[1746559902985,0.2103021,95106.0,95102.0,0.0333]
[1746559903580,0.2103021,95106.0,95104.0,0.00791535]
[1746559904080,0.2426021,95106.0,95104.0,0.00791535]
[1746559909785,0.2426021,95106.0,95097.0,0.00157733]
[1746559910084,0.2426021,95106.0,95098.0,0.0325]
[1746559911378,0.2426021,95106.0,95098.0,0.2428191]
[1746559911681,0.2426021,95106.0,95098.0,0.0325]
[1746559912385,0.2426021,95106.0,95101.0,0.00796033]
[1746559912778,0.2426021,95106.0,95102.0,0.0318]
[1746559921397,0.2426021,95106.0,95103.0,0.0316]
[1746559921782,0.3218021,95106.0,95103.0,0.0316]
[1746559921983,0.3218021,95106.0,95103.0,0.2419075]
[1746559922283,0.2895021,95106.0,95103.0,0.0316]
[1746559922482,0.2895021,95106.0,95103.0,0.2419085]
[1746559923093,0.3218021,95106.0,95103.0,0.0316]
[1746559923983,0.2103,95108.0,95107.0,0.2102999]
[1746559924289,0.2895,95108.0,95107.0,0.2102999]
[1746559924587,0.2895,95108.0,95107.0,0.36726187]
[1746559924787,0.2895,95108.0,95107.0,0.43136187]
[1746559928291,0.2895,95108.0,95107.0,0.22106197]
[1746559929592,0.2895,95108.0,95107.0,0.43136187]
[1746559929990,0.3202,95108.0,95107.0,0.43136187]
[1746559931288,0.32016,95108.0,95107.0,0.22106197]
[1746559931495,0.32016,95108.0,95107.0,0.18816197]
[1746559931796,0.35236,95108.0,95107.0,0.18816197]
[1746559933593,0.71316,95108.0,95107.0,0.18816197]
[1746559935385,0.35236,95108.0,95107.0,0.18816197]
[1746559935590,0.35236,95108.0,95107.0,0.39846187]
[1746559936100,0.2103,95108.0,95107.0,0.39846187]
[1746559940099,0.2102963,95109.0,95108.0,0.2102955]
[1746559940391,0.2102963,95109.0,95108.0,0.6029955]
[1746559940598,0.2102963,95109.0,95108.0,0.79329963]
[1746559948199,0.262847,95119.0,95118.0,0.210266]
[1746559948407,0.341967,95119.0,95118.0,0.571066]
[1746559948708,0.341967,95119.0,95118.0,0.72818623]
[1746559949209,0.341967,95119.0,95118.0,0.79108623]
[1746559950709,0.2893985,95119.0,95118.0,0.79108623]
[1746559951003,0.07912,95119.0,95118.0,0.79108623]
[1746559951210,0.0324,95120.0,95119.0,0.2102734]
[1746559951511,0.2426712,95120.0,95119.0,0.2102734]
[1746559951709,0.2426712,95120.0,95119.0,0.42981921]
[1746559951909,0.2426712,95120.0,95119.0,0.44027259]
[1746559952109,0.16068727,95129.0,95128.0,0.2102535]
[1746559952314,0.37093857,95129.0,95128.0,0.5710535]
[1746559952608,0.37093857,95129.0,95128.0,0.72898364]
[1746559953008,0.37093857,95129.0,95128.0,0.75918364]
[1746559953308,0.16068727,95129.0,95128.0,0.83826364]
[1746559953515,0.16068727,95129.0,95128.0,0.86866364]
[1746559953712,0.16068727,95129.0,95128.0,1.06866364]
[1746559954715,0.00157758,95135.0,95134.0,0.2102402]
[1746559954906,0.00157758,95135.0,95134.0,0.3602402]
[1746559955107,0.00157758,95135.0,95134.0,0.3679176]
[1746559955308,0.00157758,95135.0,95134.0,0.5079176]
[1746559955509,0.00157758,95135.0,95134.0,0.5738176]
[1746559956716,0.00157758,95135.0,95134.0,0.7538176]
[1746559957124,0.00157758,95135.0,95134.0,0.9318176]
[1746559958116,0.13385215,95139.0,95134.0,0.6466934]
[1746559958313,0.09903087,95147.0,95146.0,0.2102137]
[1746559958519,0.09903087,95147.0,95146.0,1.1400937]
[1746559958720,0.09903087,95147.0,95146.0,1.29730986]
[1746559959620,0.0015,95150.0,95149.0,0.2102071]
[1746559959819,0.0015,95150.0,95149.0,0.7702071]
[1746559960020,0.0015,95150.0,95149.0,0.92693507]
[1746559960508,0.0015,95150.0,95149.0,0.95883507]
[1746559963121,0.0015,95150.0,95149.0,0.9667772]
[1746559971127,0.0015,95150.0,95149.0,0.9348772]
[1746559972928,0.0015,95150.0,95149.0,0.9649772]
[1746559978434,0.0015,95150.0,95149.0,0.9348772]
[1746559979032,0.0015,95150.0,95149.0,0.7848772]
[1746559979635,0.0015,95150.0,95149.0,0.9248772]
[1746559979836,0.0015,95150.0,95149.0,0.9348772]
[1746559981238,0.0015,95150.0,95149.0,0.9148772]
[1746559986544,0.0312,95154.0,95153.0,0.2101983]
[1746559986739,0.2101657,95168.0,95165.0,0.2101718]
[1746559986944,0.2101674,95167.0,95165.0,0.5709718]
[1746559987147,0.2111695,95166.0,95165.0,0.73878379]
[1746559987447,0.001,95166.0,95165.0,0.73878379]
[1746559987942,0.034,95166.0,95165.0,0.73878379]
[1746559988143,0.2441695,95166.0,95165.0,0.73878379]
[1746559988546,0.034,95166.0,95165.0,0.73878379]
[1746559990239,0.0971,95166.0,95165.0,0.73878379]
[1746559990747,0.3072695,95166.0,95165.0,0.73878379]
[1746559991149,0.0971,95166.0,95165.0,0.73878379]
[1746559991749,0.3072695,95166.0,95165.0,0.73878379]
[1746559996751,0.0971,95166.0,95165.0,0.73878379]
[1746559997153,0.3072695,95166.0,95165.0,0.73878379]
[1746559997355,0.3072695,95166.0,95165.0,0.75456375]
[1746559998553,0.3072695,95166.0,95165.0,0.73878379]
[1746559998756,0.75861635,95166.0,95165.0,0.73878379]
[1746559999641,0.75861635,95166.0,95165.0,0.21316802]
[1746559999855,0.75861635,95166.0,95165.0,0.16781199]
[1746560000653,0.75861635,95166.0,95165.0,0.37798379]
[1746560001151,0.96013145,95166.0,95165.0,0.37798379]
[1746560001655,0.96013145,95166.0,95160.0,0.0214583]
[1746560001956,0.96013145,95166.0,95165.0,0.36860256]
[1746560002348,0.96013145,95166.0,95165.0,0.2101718]
[1746560002755,0.96013145,95166.0,95165.0,0.37766684]
[1746560003261,1.04134074,95166.0,95165.0,0.37766684]
[1746560004551,1.04134074,95166.0,95165.0,0.13956689]
[1746560004847,1.04134074,95166.0,95165.0,0.34973869]
[1746560008157,1.04134074,95166.0,95165.0,0.13956689]
[1746560008348,1.04134074,95166.0,95165.0,0.34973869]
[1746560008659,0.67921967,95166.0,95165.0,0.34973869]
[1746560009461,0.67921967,95166.0,95165.0,0.13956689]
[1746560009655,0.67921967,95166.0,95165.0,0.12915944]
[1746560012159,0.5087846,95166.0,95165.0,0.12915944]
[1746560014462,0.5087846,95166.0,95165.0,0.33933124]
[1746560014762,0.3072695,95166.0,95165.0,0.33933124]
[1746560015660,0.3072695,95166.0,95165.0,0.12915944]
[1746560016364,0.3072695,95166.0,95165.0,0.33933124]
[1746560016563,0.3072695,95166.0,95165.0,0.37253124]
[1746560017363,0.3072695,95166.0,95165.0,0.16235944]
[1746560018063,0.3861495,95166.0,95165.0,0.16235944]
[1746560021661,0.3861495,95166.0,95165.0,0.12915944]
[1746560022666,0.3861495,95166.0,95165.0,0.33933124]
[1746560026671,0.17598,95166.0,95165.0,0.33933124]
[1746560026871,0.3861495,95166.0,95165.0,0.33933124]
[1746560027165,0.0312,95166.0,95165.0,0.33933124]
[1746560029469,0.3608,95168.0,95165.0,0.67915944]
[1746560029668,0.2101331,95183.0,95182.0,0.210132]
[1746560029868,0.0617,95184.0,95183.0,0.210132]
[1746560030075,0.2101233,95187.0,95184.0,0.2101298]
[1746560030264,0.2101261,95186.0,95184.0,0.2101298]
[1746560030464,0.2101261,95186.0,95184.0,0.2403298]
[1746560030772,0.2116276,95185.0,95184.0,0.2403298]
[1746560031073,0.0015,95185.0,95184.0,0.2734298]
[1746560031467,0.0316,95185.0,95184.0,0.2734298]
[1746560033670,0.0316,95185.0,95184.0,0.58004933]
[1746560033868,0.0316,95185.0,95184.0,0.43004933]
[1746560037678,0.0316,95185.0,95184.0,0.80004933]
[1746560039690,0.0015,95185.0,95184.0,0.80004933]
[1746560039893,0.0015,95185.0,95184.0,0.94004933]
[1746560041191,0.0015,95185.0,95184.0,0.80004933]
[1746560041986,0.0015,95185.0,95184.0,0.94004933]
[1746560044291,0.0015,95185.0,95184.0,0.95004933]
[1746560044488,0.0015,95185.0,95184.0,1.02888933]
[1746560045379,0.0015,95185.0,95184.0,1.13394933]
[1746560045585,0.0015,95185.0,95184.0,1.49474933]
[1746560045792,0.0015,95185.0,95184.0,1.51015809]
[1746560046196,0.0015,95185.0,95184.0,3.18815809]
[1746560046488,0.115,95200.0,95195.0,0.2101055]
[1746560046694,0.115,95200.0,95195.0,1.03631426]
[1746560046887,0.0308,95199.0,95195.0,1.19286975]
[1746560047284,0.0308,95199.0,95195.0,1.25566975]
[1746560048695,0.0308,95199.0,95195.0,1.27476972]
[1746560049286,0.115,95200.0,95195.0,1.27476972]
[1746560049793,0.115,95200.0,95195.0,1.77476972]
[1746560050294,0.115,95200.0,95195.0,3.27476972]
[1746560052099,0.0323,95199.0,95195.0,3.25936096]
[1746560052283,0.0323,95199.0,95195.0,3.27538879]
[1746560052692,0.0323,95199.0,95195.0,3.25936096]
[1746560053492,0.0323,95199.0,95195.0,3.27518256]
[1746560054298,0.0323,95199.0,95195.0,3.27500556]
[1746560054685,0.0323,95199.0,95195.0,1.77500556]
[1746560055201,0.0323,95199.0,95195.0,1.35380556]
[1746560055697,0.0323,95199.0,95195.0,1.33816096]
[1746560057494,0.0328,95198.0,95195.0,1.33816096]
[1746560058897,0.0308,95197.0,95195.0,1.33816096]
[1746560059286,0.0626,95196.0,95195.0,1.33816096]
[1746560060194,0.0626,95196.0,95195.0,1.19656096]
[1746560060400,0.2727033,95196.0,95195.0,0.59615549]
[1746560060702,0.6335033,95196.0,95195.0,0.0788]
[1746560061704,0.2101276,95185.0,95184.0,0.5709298]
[1746560061903,0.2101276,95185.0,95184.0,0.6497298]
[1746560062103,0.2101276,95185.0,95184.0,0.66913798]
[1746560062303,0.2101276,95185.0,95184.0,0.82601236]
[1746560062506,0.2726276,95185.0,95184.0,0.82601236]
[1746560063000,0.0525313,95187.0,95184.0,0.82601236]
[1746560063208,0.2101128,95194.0,95193.0,0.2101092]
[1746560063399,0.0788,95195.0,95194.0,0.2101077]
[1746560063599,0.2889055,95195.0,95194.0,0.2101077]
[1746560063803,0.2889055,95195.0,95194.0,0.36825856]
[1746560064306,0.3816055,95195.0,95194.0,0.36825856]
[1746560069008,0.3816055,95195.0,95194.0,0.15815086]
[1746560071612,0.276548,95195.0,95184.0,0.3608]
[1746560071812,0.2101519,95174.0,95166.0,0.21231338]
[1746560072006,0.2101519,95174.0,95171.0,0.2101569]
[1746560072203,0.2101519,95174.0,95173.0,0.15890142]
[1746560072915,0.2717519,95174.0,95173.0,0.15890142]
[1746560079220,0.2717519,95174.0,95173.0,0.36905552]
[1746560082320,0.2717519,95174.0,95173.0,0.15890142]
[1746560082827,0.2717519,95174.0,95173.0,0.36905552]
[1746560083029,0.2717519,95174.0,95173.0,0.15890142]
[1746560084528,0.2406519,95174.0,95173.0,0.36905552]
[1746560084922,0.2406519,95174.0,95173.0,0.40105552]
[1746560093237,0.0305,95174.0,95173.0,0.40105552]
[1746560093532,0.2406519,95174.0,95173.0,0.40105552]
[1746560094333,0.2406519,95174.0,95173.0,0.41658934]
[1746560097335,0.2406519,95174.0,95173.0,0.20643524]
[1746560097537,0.2406519,95174.0,95173.0,0.41658934]
[1746560099036,0.2406519,95174.0,95173.0,0.40105552]
[1746560101027,0.2406519,95174.0,95173.0,0.41697601]
[1746560102433,0.2406519,95174.0,95173.0,0.41680586]
[1746560102731,0.2406519,95174.0,95173.0,0.77760586]
[1746560102926,0.3608,95199.0,95174.0,0.0525379]
[1746560102927,0.0525304,95188.0,95174.0,0.0525379]
[1746560103237,0.210121,95188.0,95187.0,0.3608]
[1746560103441,0.289281,95188.0,95187.0,0.3608]
[1746560103734,0.319681,95188.0,95187.0,0.37631889]
[1746560103942,0.240521,95188.0,95187.0,0.37631889]
[1746560104131,0.319881,95188.0,95187.0,0.37631889]
[1746560104640,0.243521,95188.0,95187.0,0.58644209]
[1746560104831,0.292441,95188.0,95187.0,0.58644209]
[1746560105231,0.292441,95188.0,95187.0,0.60221212]
[1746560105431,0.292441,95188.0,95187.0,0.64924209]
[1746560106139,0.292441,95188.0,95187.0,0.43911889]
[1746560106326,0.292441,95188.0,95187.0,0.37631889]
[1746560107136,0.292441,95188.0,95187.0,0.01551889]
[1746560108436,0.2101254,95186.0,95185.0,0.2101263]
[1746560108941,0.2101254,95186.0,95185.0,0.366742]
[1746560109737,0.003,95186.0,95185.0,0.887542]
[1746560109942,0.003,95186.0,95185.0,0.787842]
[1746560110843,0.2131254,95186.0,95185.0,0.787842]
[1746560112246,0.2131254,95186.0,95185.0,0.80331984]
[1746560115939,0.2131254,95186.0,95185.0,0.787842]
[1746560116346,0.2131254,95186.0,95185.0,0.5777157]
[1746560117046,0.2781254,95186.0,95185.0,0.5777157]
[1746560118750,0.2781254,95186.0,95185.0,0.7878433]
[1746560120146,0.2781254,95186.0,95185.0,0.7578433]
[1746560123850,0.2781254,95186.0,95185.0,0.3970433]
[1746560124041,0.2781254,95186.0,95185.0,0.7578433]
[1746560133963,0.2781254,95186.0,95185.0,0.7275433]
[1746560144464,0.2781254,95186.0,95185.0,0.7605433]
[1746560159471,0.2781254,95186.0,95185.0,0.5174157]
[1746560163875,0.2781254,95186.0,95185.0,0.1566157]
[1746560168092,0.3831854,95186.0,95185.0,0.1566157]
[1746560168286,0.2101453,95177.0,95176.0,0.570947]
[1746560168478,0.2889853,95177.0,95176.0,0.570947]
[1746560168783,0.2889853,95177.0,95176.0,0.7286902]
[1746560169185,0.3535853,95177.0,95176.0,0.7286902]
[1746560169889,0.3535853,95177.0,95176.0,0.5185432]
[1746560170479,0.3535853,95177.0,95176.0,0.7286907]
[1746560170783,0.3535853,95177.0,95176.0,0.5185432]
[1746560171686,0.3565853,95177.0,95176.0,0.5185432]
[1746560172780,0.3565853,95177.0,95176.0,0.7286907]
[1746560173780,0.3565853,95177.0,95176.0,0.5185432]
[1746560174992,0.3565853,95177.0,95176.0,0.5486432]
[1746560181994,0.3555853,95177.0,95176.0,0.5486432]
[1746560183692,0.3555853,95177.0,95176.0,0.7587907]
[1746560183892,0.3555853,95177.0,95176.0,0.5486432]
[1746560186098,0.3565853,95177.0,95176.0,0.5486432]
[1746560187493,0.3565853,95177.0,95176.0,0.5185432]
[1746560194102,0.2101519,95174.0,95173.0,0.0331]
[1746560194403,0.5709519,95174.0,95173.0,0.18986812]
[1746560194998,0.6316519,95174.0,95173.0,0.18986812]
[1746560196409,0.6336519,95174.0,95173.0,0.18986812]
[1746560196604,0.6336519,95174.0,95173.0,0.15676812]
[1746560196906,0.2101541,95173.0,95172.0,0.07884]
[1746560197302,0.2738541,95173.0,95172.0,0.07884]
[1746560198411,0.2101629,95169.0,95168.0,0.033]
[1746560201608,0.2121629,95169.0,95168.0,0.033]
[1746560201810,0.2439629,95169.0,95168.0,0.033]
[1746560202619,0.2751629,95169.0,95168.0,0.033]
[1746560208927,0.2101651,95168.0,95167.0,0.00157617]
[1746560209431,0.2711651,95168.0,95167.0,0.16012714]
[1746560211434,0.2731651,95168.0,95167.0,0.16012714]
[1746560212932,0.2731651,95168.0,95167.0,0.37029444]
[1746560213131,0.2731651,95168.0,95167.0,0.40319444]
[1746560215635,0.2731651,95168.0,95167.0,0.19302714]
[1746560216538,0.2731651,95168.0,95167.0,0.16012714]
[1746560219441,0.2731651,95168.0,95167.0,0.19122714]
[1746560221540,0.2731651,95168.0,95167.0,0.16012714]
[1746560223030,0.2731651,95168.0,95167.0,0.19272714]
[1746560229751,0.2731651,95168.0,95167.0,0.16012714]
[1746560232443,0.2731651,95168.0,95167.0,0.00157617]
[1746560238654,0.2101916,95156.0,95155.0,0.0306]
[1746560238956,0.2101916,95156.0,95149.0,0.00794213]
[1746560238957,0.2102027,95151.0,95150.0,0.0329]
[1746560239158,0.2102027,95151.0,95150.0,0.0652]
[1746560239554,0.2736027,95151.0,95150.0,0.22201944]
[1746560239753,0.2736027,95151.0,95150.0,0.15681944]
[1746560240155,0.2102093,95148.0,95147.0,0.00157644]
[1746560240552,0.2102093,95148.0,95147.0,0.15849613]
[1746560241052,0.2736093,95148.0,95147.0,0.15849613]
[1746560241553,0.2726093,95148.0,95147.0,0.15849613]
[1746560242361,0.2726093,95148.0,95147.0,0.16049613]
[1746560243154,0.3513293,95148.0,95147.0,0.16049613]
[1746560243355,0.2101986,95156.0,95155.0,0.2101894]
[1746560243660,0.0525443,95163.0,95156.0,0.0525477]
[1746560243861,0.2101777,95163.0,95162.0,0.2101784]
[1746560244057,0.2888977,95163.0,95162.0,0.2101784]
[1746560244258,0.2101806,95161.0,95160.0,0.2101811]
[1746560244660,0.2889006,95161.0,95160.0,0.36836676]
[1746560246662,0.2899006,95161.0,95160.0,0.36836676]
[1746560248659,0.001,95161.0,95160.0,0.36836676]
[1746560248860,0.07972,95161.0,95160.0,0.36836676]
[1746560249159,0.001,95161.0,95160.0,0.68636676]
[1746560250866,0.001,95161.0,95160.0,0.54636676]
[1746560253864,0.2111806,95161.0,95160.0,0.54636676]
[1746560254063,0.001,95161.0,95160.0,0.57846676]
[1746560254666,0.2101548,95175.0,95174.0,0.2101497]
[1746560254865,0.2101548,95175.0,95174.0,0.5709497]
[1746560255269,0.2409548,95175.0,95174.0,0.5709497]
[1746560255761,0.2409548,95175.0,95174.0,0.6678497]
[1746560256360,0.2409548,95175.0,95174.0,0.4577]
[1746560256869,0.2409548,95175.0,95174.0,0.6678519]
[1746560257060,0.2439548,95175.0,95174.0,0.6678519]
[1746560258369,0.2439548,95175.0,95174.0,0.69341904]
[1746560261162,0.2439548,95175.0,95174.0,0.48326714]
[1746560262569,0.2439548,95175.0,95174.0,0.12246714]
[1746560263474,0.2439548,95175.0,95174.0,0.0331]
[1746560263772,0.2101651,95168.0,95156.0,0.2101914]
[1746560263972,0.2101806,95161.0,95160.0,0.0304]
[1746560264172,0.2101806,95161.0,95160.0,0.0611]
[1746560264375,0.2101806,95161.0,95160.0,0.24314658]
[1746560264578,0.2101806,95161.0,95160.0,0.45332938]
[1746560264869,0.2101806,95161.0,95160.0,0.15686384]
[1746560265172,0.2102049,95150.0,95149.0,0.24897732]
[1746560265566,0.2102049,95150.0,95149.0,0.40657389]
[1746560266466,0.2102049,95150.0,95149.0,0.43176176]
[1746560267567,0.2102049,95150.0,95149.0,0.79256176]
[1746560268071,0.2102049,95150.0,95149.0,0.58235466]
[1746560268268,0.2432049,95150.0,95149.0,0.58235466]
[1746560268575,0.2432049,95150.0,95149.0,0.58435466]
[1746560269772,0.2432049,95150.0,95149.0,0.61765466]
[1746560270373,0.2432049,95150.0,95149.0,0.82786176]
[1746560272475,0.2432049,95150.0,95149.0,0.61765466]
[1746560272777,0.2432049,95150.0,95149.0,0.82786176]
[1746560276381,0.2102049,95150.0,95149.0,0.82786176]
[1746560293977,0.2432049,95150.0,95149.0,0.82786176]
[1746560297783,0.2763049,95150.0,95149.0,0.82786176]
[1746560298499,0.2763049,95150.0,95149.0,0.79716176]
[1746560310699,0.2763049,95150.0,95149.0,0.55365466]
[1746560313797,0.2763049,95150.0,95149.0,0.76386176]
[1746560315508,0.2763049,95150.0,95149.0,0.79566176]
[1746560320205,0.2763049,95150.0,95149.0,0.43486176]
[1746560322404,0.2763049,95150.0,95149.0,0.19285466]
[1746560328500,0.2763049,95150.0,95149.0,0.40306176]
[1746560328907,0.2763049,95150.0,95149.0,0.16766679]
[1746560329101,0.2763049,95150.0,95149.0,0.15959657]
[1746560329301,0.2763049,95150.0,95149.0,0.002]
[1746560330203,0.3814009,95150.0,95149.0,0.002]
[1746560330405,0.7422009,95150.0,95149.0,0.002]
[1746560343318,0.7422009,95150.0,95135.0,0.00105113]
[1746560343319,0.2102358,95136.0,95135.0,0.00105113]
[1746560343514,0.2887558,95136.0,95135.0,0.00105113]
[1746560344211,0.3529558,95136.0,95135.0,0.00105113]
[1746560347117,0.3549558,95136.0,95135.0,0.00105113]
[1746560349719,0.3233558,95136.0,95135.0,0.00105113]
[1746560350310,0.3233558,95136.0,95135.0,0.01645991]
[1746560350512,0.6841558,95136.0,95135.0,0.01645991]
[1746560351115,0.2102425,95133.0,95129.0,0.00157677]
[1746560351417,0.2102425,95133.0,95090.0,0.12584479]
[1746560351418,0.0525647,95126.0,95113.0,0.3608]